bitfinex-derivatives/quotes_SOLF0:USTF0_20250613
["timestamp","ask_amount","ask_price","bid_price","bid_amount"]
[1749780860715,455.31456859,142.75,142.67,7.95456859]
[1749780860911,447.36,142.75,142.67,7.95456859]
[1749780861218,454.3602,142.75,142.65,48.28]
[1749780861408,447.36,142.75,142.66,7.95456859]
[1749780861610,0.04598577,142.72,142.69,0.04845352]
[1749780862719,44.1,142.78,142.7,7.95456859]
[1749780863012,7.95456859,142.8,142.72,7.95456859]
[1749780863717,0.04773904,142.77,142.75,7.05144366]
[1749780863912,7.95456859,142.76,142.75,0.05204366]
[1749780864217,14.95386859,142.76,142.75,0.05204366]
[1749780864418,7.95456859,142.76,142.75,0.05204366]
[1749780865011,44.14773904,142.77,142.75,0.05204366]
[1749780865214,7.95456859,142.76,142.75,0.05204366]
[1749780865920,14.95386859,142.76,142.75,0.05204366]
[1749780867611,44.14773904,142.77,142.75,0.05204366]
[1749780867814,0.04773904,142.77,142.75,0.05204366]
[1749780868119,403.34,142.83,142.75,0.05204366]
[1749780868120,403.34,142.83,142.76,7.95456859]
[1749780868418,403.34,142.83,142.77,2.2231]
[1749780869216,44.1,142.84,142.79,0.05029138]
[1749780870117,7.95456859,142.9,142.8,7.95456859]
[1749780870321,44.1,142.89,142.82,7.95456859]
[1749780870518,44.08,142.9,142.82,7.95456859]
[1749780870719,52.03456859,142.9,142.81,7.95456859]
[1749780871109,44.08,142.9,142.87,6.9936]
[1749780871417,44.08,142.9,142.87,0.04707306]
[1749780872419,44.08,142.93,142.87,0.04707306]
[1749780872820,51.071,142.93,142.89,6.9927]
[1749780873928,51.071,142.93,142.87,0.04707306]
[1749780873929,6.9915,142.92,142.88,6.9933]
[1749780874424,6.9933,142.89,142.87,0.04707306]
[1749780874624,12.27157387,142.91,142.87,0.04707306]
[1749780875220,12.28002494,142.88,142.72,403.16]
[1749780875421,12.28002494,142.86,142.77,8.4738]
[1749780875618,51.0754,142.85,142.77,8.4738]
[1749780876022,44.08,142.85,142.77,8.4738]
[1749780876332,0.04710334,142.82,142.8,0.05058513]
[1749780877816,12.33118974,142.82,142.8,0.05058513]
[1749780878020,44.08,142.81,142.77,4.0]
[1749780878316,6.9983,142.78,142.77,4.0]
[1749780878725,44.08,142.84,142.77,4.0]
[1749780879120,44.08,142.84,142.79,0.05288753]
[1749780879121,0.05118264,142.82,142.79,0.05288753]
[1749780880224,5.88465228,142.82,142.79,0.05288753]
[1749780880427,6.9972,142.81,142.79,0.05288753]
[1749780880627,44.08,142.8,142.79,0.05288753]
[1749780881027,51.0774,142.8,142.79,0.05288753]
[1749780881226,51.0774,142.8,142.77,4.0]
[1749780881227,200.19646006,142.8,142.77,4.0]
[1749780881522,19.2823864,142.78,142.77,4.0]
[1749780881726,25.09884646,142.78,142.77,0.4137]
[1749780882120,27.83138481,142.78,142.77,0.3571]
[1749780882317,27.83289633,142.78,142.77,0.3571]
[1749780882729,6.9988,142.77,142.76,0.04468632]
[1749780882930,12.81526006,142.77,142.76,0.04468632]
[1749780883125,5.81646006,142.77,142.76,0.04468632]
[1749780883527,5.81646006,142.78,142.76,0.04468632]
[1749780883719,5.81646006,142.77,142.76,7.04398632]
[1749780883925,5.81646006,142.78,142.76,0.04468632]
[1749780884217,0.05111932,142.79,142.76,0.04468632]
[1749780884424,5.82097973,142.78,142.76,0.04468632]
[1749780884622,12.2840864,142.78,142.76,4.04468632]
[1749780884824,5.82338806,142.77,142.73,2.2]
[1749780885028,12.2840864,142.74,142.73,2.2]
[1749780885222,25.10777446,142.74,142.73,2.2]
[1749780885428,18.10747446,142.74,142.69,18.9]
[1749780885626,19.2863864,142.7,142.69,18.9]
[1749780885823,69.16017163,142.7,142.69,18.9]
[1749780886033,62.15787163,142.7,142.68,0.04734772]
[1749780886231,5.79378523,142.69,142.68,0.04734772]
[1749780886531,10.62672315,142.69,142.68,0.04734772]
[1749780886735,5.79155603,142.69,142.68,4.04734772]
[1749780887038,10.62402052,142.69,142.68,4.04734772]
[1749780887232,10.62426862,142.69,142.58,6.8392]
[1749780887423,12.2840864,142.66,142.58,6.8392]
[1749780887628,44.08,142.65,142.58,6.8392]
[1749780888230,0.05161308,142.63,142.6,0.04781716]
[1749780888435,0.05161308,142.63,142.62,7.0062]
[1749780888631,0.05161308,142.63,142.6,0.04781716]
[1749780889033,0.05161308,142.63,142.6,7.05471716]
[1749780889231,0.05161308,142.63,142.6,0.04781716]
[1749780889432,0.05161308,142.63,142.6,4.04781716]
[1749780890337,12.2840864,142.61,142.6,4.04781716]
[1749780890638,56.3840864,142.61,142.6,4.04781716]
[1749780891238,7.0077,142.59,142.58,2.2]
[1749780891535,7.0077,142.59,142.52,2.3595]
[1749780891536,12.2840864,142.59,142.52,2.3595]
[1749780892042,7.0082,142.58,142.54,7.0098]
[1749780892227,44.15263985,142.57,142.55,0.04780292]
[1749780893232,44.15263985,142.57,142.55,11.05710292]
[1749780894931,44.15263985,142.57,142.56,7.0091]
[1749780895134,43.92,142.6,142.55,4.04780292]
[1749780895333,56.2040864,142.61,142.55,4.0]
[1749780896131,12.33619489,142.59,142.57,0.05020407]
[1749780896340,0.05210849,142.59,142.57,0.05020407]
[1749780896533,12.2840864,142.58,142.57,0.05020407]
[1749780896734,7.06010849,142.59,142.57,0.05020407]
[1749780897039,12.2840864,142.58,142.57,0.05020407]
[1749780897538,0.05210849,142.59,142.57,0.05020407]
[1749780898132,12.33238409,142.58,142.57,0.05020407]
[1749780898346,7.0091,142.56,142.55,4.0]
[1749780898533,56.27238409,142.56,142.51,2.21]
[1749780899440,12.33238409,142.53,142.52,0.04670273]
[1749780900243,19.34298409,142.53,142.52,0.04670273]
[1749780900437,19.35238409,142.53,142.39,2.2748]
[1749780900745,12.33238409,142.46,142.41,7.0161]
[1749780900947,43.94,142.45,142.39,6.8153]
[1749780901338,12.7805446,142.62,142.42,12.34990622]
[1749780901339,403.74,142.57,142.42,12.34990622]
[1749780901543,56.28990622,142.58,142.46,12.34990622]
[1749780901738,56.28990622,142.58,142.47,50.9344]
[1749780901937,43.94,142.58,142.49,12.34990622]
[1749780902148,12.34990622,142.56,142.47,6.9944]
[1749780902336,0.0532744,142.53,142.5,0.04767731]
[1749780902535,43.94,142.52,142.5,0.04767731]
[1749780904038,56.28990622,142.52,142.5,0.04767731]
[1749780905343,63.30990622,142.52,142.49,4.0]
[1749780905544,63.30990622,142.52,142.41,7.1424]
[1749780905545,12.34990622,142.5,142.41,7.1424]
[1749780906142,7.0139,142.47,142.42,7.0159]
[1749780906345,56.36214842,142.46,142.43,0.04841025]
[1749780906746,12.35619948,142.44,142.43,0.04841025]
[1749780907246,19.37119948,142.44,142.43,0.04841025]
[1749780907433,19.37119948,142.44,142.43,4.04841025]
[1749780907942,19.37119948,142.44,142.43,4.02741025]
[1749780908143,19.37119948,142.44,142.34,4.442]
[1749780908144,19.37619948,142.44,142.34,4.442]
[1749780908347,12.35619948,142.36,142.27,6.7531]
[1749780908647,12.35619948,142.34,142.27,4.5603]
[1749780909042,43.96,142.35,142.27,4.5603]
[1749780909342,0.04508525,142.32,142.3,7.0215]
[1749780909737,0.04508525,142.32,142.29,0.04815832]
[1749780910041,43.98,142.31,142.29,0.04815832]
[1749780910239,12.35619948,142.3,142.11,62.0]
[1749780910447,12.35619948,142.25,142.2,7.0268]
[1749780910747,554.34,142.36,142.17,12.38868356]
[1749780910748,43.98,142.24,142.17,12.38868356]
[1749780910949,43.98,142.26,142.22,7.0255]
[1749780911150,12.38849998,142.25,142.15,43.98]
[1749780911442,6.994e-05,142.21,142.19,0.04832661]
[1749780911637,6.994e-05,142.21,142.2,7.0269]
[1749780912350,6.994e-05,142.21,142.2,4.0]
[1749780913137,6.38187148,142.41,142.2,11.04]
[1749780913350,12.38750493,142.31,142.24,7.0245]
[1749780913549,44.0,142.3,142.21,2.4092]
[1749780913751,51.022,142.3,142.21,2.4092]
[1749780913952,12.38750493,142.29,142.21,2.4092]
[1749780914142,0.04451796,142.26,142.24,0.04687144]
[1749780914850,44.04451796,142.26,142.24,0.04687144]
[1749780915245,44.04451796,142.26,142.25,7.0244]
[1749780915543,44.04451796,142.26,142.24,0.04687144]
[1749780916143,44.04451796,142.26,142.25,7.0244]
[1749780916443,44.04451796,142.26,142.24,0.04687144]
[1749780916640,44.04451796,142.26,142.25,7.0244]
[1749780916942,0.04451796,142.26,142.25,7.0244]
[1749780917351,44.02,142.3,142.24,0.04687144]
[1749780918448,0.04935606,142.28,142.24,0.04687144]
[1749780918857,0.04935606,142.28,142.24,7.07137144]
[1749780919044,0.04935606,142.28,142.24,0.04687144]
[1749780919551,0.04935606,142.28,142.25,7.024]
[1749780920153,0.04935606,142.28,142.24,0.04687144]
[1749780920341,12.43686099,142.28,142.24,0.04687144]
[1749780920542,404.24,142.31,142.24,0.04687144]
[1749780920543,44.02,142.33,142.25,12.38750493]
[1749780920849,44.02,142.33,142.3,7.0218]
[1749780921055,44.02,142.33,142.25,12.38750493]
[1749780921252,44.02,142.33,142.26,12.38750493]
[1749780921647,0.05043356,142.31,142.3,7.0219]
[1749780921946,0.05043356,142.31,142.28,0.04777913]
[1749780922146,162.84750493,142.37,142.28,12.43528406]
[1749780922147,44.04,142.37,142.28,12.43528406]
[1749780922345,12.38750493,142.44,142.32,12.38750493]
[1749780922550,44.04,142.43,142.34,12.38750493]
[1749780922748,44.04,142.43,142.4,7.017]
[1749780922956,44.04,142.43,142.36,12.38750493]
[1749780923257,0.04913428,142.41,142.4,7.017]
[1749780923549,404.54,142.45,142.37,2.4129]
[1749780923550,0.05179084,142.42,142.39,0.05107189]
[1749780923854,0.05179084,142.42,142.41,7.0165]
[1749780924051,0.05179084,142.42,142.39,0.05107189]
[1749780926250,43.88,142.41,142.39,0.05107189]
[1749780926456,43.88,142.41,142.39,7.06857189]
[1749780926655,43.88,142.41,142.39,0.05107189]
[1749780928554,56.26750493,142.41,142.33,6.9034]
[1749780928959,43.88,142.41,142.33,10.9034]
[1749780929256,43.88,142.41,142.38,7.0178]
[1749780929458,43.93288139,142.41,142.38,0.05006623]
[1749780930147,43.93288139,142.41,142.38,7.06766623]
[1749780930348,43.93288139,142.41,142.38,0.05006623]
[1749780930856,43.93288139,142.41,142.38,7.06766623]
[1749780931052,43.93288139,142.41,142.38,0.05006623]
[1749780931753,43.93288139,142.41,142.4,7.017]
[1749780931955,448.4,142.45,142.38,0.05006623]
[1749780932257,7.0156,142.43,142.38,7.06796623]
[1749780932455,12.38750493,142.44,142.38,0.05006623]
[1749780932959,0.04939306,142.42,142.38,0.05006623]
[1749780933160,12.38750493,142.4,142.38,0.05006623]
[1749780933355,7.0175,142.39,142.38,0.05006623]
[1749780934457,19.40470493,142.4,142.38,0.05006623]
[1749780934762,12.38750493,142.4,142.38,0.05006623]
[1749780934957,7.0175,142.39,142.38,0.05006623]
[1749780935159,157.3375,142.39,142.38,0.05006623]
[1749780935556,150.32,142.39,142.38,0.05006623]
[1749780935861,43.86,142.41,142.38,0.05006623]
[1749780936060,12.38750493,142.4,142.38,0.05006623]
[1749780936650,43.86,142.41,142.38,7.06786623]
[1749780936954,0.04939306,142.42,142.38,0.05006623]
[1749780938057,0.04939306,142.42,142.41,7.0165]
[1749780938761,43.86,142.48,142.41,7.02]
[1749780939063,43.86,142.5,142.42,16.91558691]
[1749780939267,56.20508691,142.5,142.42,4.5705]
[1749780939560,12.34508691,142.46,142.42,2.2581]
[1749780939763,43.90557464,142.45,142.43,0.04710423]
[1749780939965,43.91128484,142.45,142.43,0.04599316]
[1749780940154,50.92618484,142.45,142.43,0.04599316]
[1749780940562,50.92618484,142.45,142.43,4.04599316]
[1749780940867,43.91128484,142.45,142.43,4.04599316]
[1749780941462,43.91128484,142.45,142.43,11.06149316]
[1749780941764,43.91128484,142.45,142.43,4.04599316]
[1749780942151,50.92598484,142.45,142.43,4.04599316]
[1749780942356,50.92598484,142.45,142.43,3.99030482]
[1749780942357,12.34508691,142.44,142.43,3.99030482]
[1749780942551,19.36008691,142.44,142.43,3.99030482]
[1749780943264,12.34508691,142.44,142.43,3.99030482]
[1749780943762,43.91128484,142.45,142.43,3.99030482]
[1749780943970,0.05128484,142.45,142.43,3.99030482]
[1749780944158,43.86,142.48,142.47,7.0136]
[1749780944966,43.86,142.51,142.44,17.10056443]
[1749780945164,7.06562675,142.49,142.46,0.04826464]
[1749780945362,0.05302675,142.49,142.46,0.04826464]
[1749780945565,12.39281567,142.49,142.46,0.04826464]
[1749780945963,12.33978892,142.47,142.46,0.04826464]
[1749780946168,56.17978892,142.47,142.46,0.04826464]
[1749780946463,63.19338892,142.47,142.46,0.04826464]
[1749780947867,43.84,142.47,142.46,0.04826464]
[1749780948560,50.8536,142.47,142.46,0.04826464]
[1749780948761,46.4834183,142.47,142.43,3.99030482]
[1749780948971,150.2,142.46,142.44,23.97]
[1749780949175,19.36348545,142.45,142.44,23.97]
[1749780950180,7.05988405,142.46,142.44,23.97]
[1749780950678,12.34898545,142.45,142.44,23.97]
[1749780950880,19.36348545,142.45,142.44,23.97]
[1749780951876,7.015,142.44,142.43,8.78e-05]
[1749780953786,7.015,142.44,142.43,4.0000878]
[1749780954584,9.66452471,142.44,142.43,4.0000878]
[1749780954781,9.66452471,142.44,142.43,8.78e-05]
[1749780954980,9.66461294,142.44,142.43,8.78e-05]
[1749780955679,2.64961294,142.44,142.43,8.78e-05]
[1749780955878,0.04558405,142.46,142.43,8.78e-05]
[1749780956376,7.0148,142.45,142.43,8.78e-05]
[1749780957375,0.04558405,142.46,142.43,8.78e-05]
[1749780957376,7.015,142.44,142.43,8.78e-05]
[1749780960281,7.0155,142.43,142.42,0.04463107]
[1749780960483,65.74731802,142.43,142.42,0.04463107]
[1749780960685,65.74862258,142.43,142.42,0.04463107]
[1749780960880,65.74891485,142.43,142.42,0.04463107]
[1749780961292,54.37099729,142.43,142.36,0.77]
[1749780961489,7.98656789,142.37,142.36,0.77]
[1749780961689,51.72656789,142.37,142.36,0.77]
[1749780961987,150.14,142.38,142.34,2.3011]
[1749780962192,150.14,142.38,142.36,4.0]
[1749780962388,0.04672536,142.37,142.36,11.019]
[1749780962593,43.74,142.4,142.36,4.0]
[1749780962989,43.74,142.4,142.39,7.0175]
[1749780963199,6.38187148,142.48,142.38,7.98656789]
[1749780963200,43.74,142.45,142.38,7.98656789]
[1749780963397,43.74,142.45,142.39,7.0172]
[1749780963398,7.98656789,142.42,142.39,7.0172]
[1749780963695,8.03537768,142.42,142.39,7.07013564]
[1749780964198,7.98656789,142.4,142.39,0.05293564]
[1749780964391,43.74,142.41,142.39,0.05293564]
[1749780965987,43.74,142.41,142.4,7.017]
[1749780966586,43.74,142.41,142.39,0.05293564]
[1749780966998,43.74,142.41,142.39,7.07003564]
[1749780967494,50.7566,142.41,142.39,0.05293564]
[1749780967897,43.74,142.41,142.39,0.05293564]
[1749780968094,43.74,142.41,142.39,7.07013564]
[1749780968291,43.74,142.41,142.39,0.05293564]
[1749780968491,5.76745816,142.4,142.39,0.05293564]
[1749780968695,12.20944149,142.4,142.36,4.0]
[1749780968997,7.98656789,142.37,142.33,0.78]
[1749780969193,15.00656789,142.34,142.33,0.78]
[1749780969398,20.77402605,142.34,142.33,0.78]
[1749780969595,13.75402605,142.34,142.32,0.04960537]
[1749780969801,7.98656789,142.34,142.32,0.04960537]
[1749780970003,7.98656789,142.34,142.24,2.4153]
[1749780970004,7.98656789,142.31,142.24,2.4153]
[1749780970200,7.022,142.3,142.24,2.4153]
[1749780970509,51.72656789,142.31,142.24,2.4153]
[1749780970903,0.05048869,142.29,142.26,7.07013776]
[1749780971203,0.05048869,142.29,142.26,0.04653776]
[1749780971597,0.05048869,142.29,142.27,7.0234]
[1749780971800,0.05048869,142.29,142.26,0.04653776]
[1749780972200,14.42671741,142.36,142.26,8.03310565]
[1749780972501,43.76,142.37,142.3,7.98656789]
[1749780972697,43.76,142.37,142.31,4.481]
[1749780972894,7.98656789,142.34,142.31,4.481]
[1749780973094,7.98656789,142.34,142.31,2.1892]
[1749780973291,0.04976354,142.34,142.32,7.0206]
[1749780975200,0.04976354,142.34,142.31,2.2407152]
[1749780976296,0.04976354,142.34,142.33,7.0205]
[1749780976702,7.98656789,142.4,142.31,10.22728309]
[1749780977006,43.76,142.41,142.31,10.22728309]
[1749780977007,43.76,142.41,142.33,7.98656789]
[1749780977206,43.76,142.44,142.34,46.1297]
[1749780977394,43.76,142.44,142.37,7.98656789]
[1749780977795,0.04908089,142.42,142.39,0.04595407]
[1749780979004,0.04908089,142.42,142.41,7.0165]
[1749780980500,0.04908089,142.42,142.39,0.04595407]
[1749780980501,8.03564878,142.42,142.39,0.04595407]
[1749780980704,0.04908089,142.42,142.39,0.04595407]
[1749780980894,0.04908089,142.42,142.41,7.0165]
[1749780981098,0.04908089,142.42,142.39,0.04595407]
[1749780981502,0.04908089,142.42,142.39,7.06325407]
[1749780981700,7.98656789,142.41,142.39,0.04595407]
[1749780981905,43.76,142.4,142.39,0.04595407]
[1749780982605,0.04908089,142.42,142.39,0.04595407]
[1749780982811,8.03564878,142.42,142.39,0.04595407]
[1749780983399,0.04908089,142.42,142.39,0.04595407]
[1749780983605,0.04908089,142.42,142.39,4.04595407]
[1749780984005,43.76,142.41,142.39,4.04595407]
[1749780984297,8.02940324,142.42,142.39,4.04595407]
[1749780984298,0.04908089,142.42,142.39,4.04595407]
[1749780984505,43.74,142.47,142.4,10.20732363]
[1749780985014,43.74,142.47,142.46,7.014]
[1749780985416,43.74,142.47,142.45,7.06422654]
[1749780985600,43.74,142.47,142.45,0.04982654]
[1749780986001,43.74,142.47,142.46,7.014]
[1749780986208,43.74,142.47,142.45,0.04982654]
[1749780986414,13.44944952,142.56,142.52,7.0108]
[1749780986609,43.66,142.55,142.52,7.0108]
[1749780986809,43.66,142.55,142.46,7.98622363]
[1749780987212,43.66,142.55,142.46,12.33380915]
[1749780987415,0.04578929,142.52,142.49,0.0493377]
[1749780987602,0.04578929,142.52,142.51,7.0116]
[1749780988209,43.66,142.55,142.5,2.3218]
[1749780988517,43.66,142.55,142.5,4.5678]
[1749780989216,0.04842042,142.54,142.5,4.5678]
[1749780991015,0.04842042,142.54,142.5,2.3218]
[1749780991215,7.0107,142.53,142.49,7.0617377]
[1749780991415,0.04842042,142.54,142.49,0.0493377]
[1749780992023,43.64,142.58,142.5,55.97380915]
[1749780992316,43.64,142.58,142.55,7.0093]
[1749780992520,43.64,142.58,142.5,55.97380915]
[1749780993116,0.05328205,142.55,142.53,0.0514396]
[1749780993310,12.32852992,142.57,142.53,0.0514396]
[1749780993914,7.0092,142.56,142.53,0.0514396]
[1749780994315,0.03914651,142.56,142.53,0.0514396]
[1749780994516,7.0096,142.55,142.53,0.0514396]
[1749780994819,12.36767643,142.56,142.53,0.0514396]
[1749780994820,43.62,142.54,142.53,0.0514396]
[1749780995015,55.94852992,142.54,142.53,0.0514396]
[1749780995221,62.96852992,142.54,142.43,43.62]
[1749780995415,12.32852992,142.5,142.43,43.62]
[1749780995721,62.96092992,142.5,142.45,7.0141]
[1749780996016,55.94852992,142.5,142.41,2.2574]
[1749780996216,0.0499701,142.47,142.44,0.04512794]
[1749780997118,7.0145,142.45,142.44,0.04512794]
[1749780998317,7.0145,142.45,142.44,2.794e-05]
[1749780998522,12.35798749,142.45,142.39,11.0172]
[1749780998917,12.35798749,142.45,142.39,4.0]
[1749780999316,12.35798749,142.43,142.39,4.0]
[1749780999513,19.37448749,142.41,142.4,0.04441048]
[1749780999716,55.99798749,142.41,142.39,4.0]
[1749780999914,7.017,142.4,142.39,4.0]
[1749781000316,55.99798749,142.41,142.31,7.1442]
[1749781000517,7.0185,142.37,142.31,7.1442]
[1749781000720,50.71251114,142.37,142.35,0.84502038]
[1749781000919,43.69401114,142.37,142.35,0.84502038]
[1749781001421,12.35798749,142.36,142.35,0.04502038]
[1749781001622,19.37698749,142.36,142.35,2.038e-05]
[1749781001822,43.69401114,142.37,142.35,2.038e-05]
[1749781002214,7.019,142.36,142.35,4.00002038]
[1749781002423,19.37698749,142.36,142.35,4.00002038]
[1749781002723,12.35798749,142.36,142.35,4.00002038]
[1749781003121,43.69401114,142.37,142.35,4.00002038]
[1749781003513,0.05401114,142.37,142.35,4.00002038]
[1749781003715,43.64,142.4,142.39,7.0175]
[1749781003916,43.64,142.43,142.36,4.5609]
[1749781004120,43.64,142.43,142.4,7.0167]
[1749781004322,43.64,142.43,142.36,4.5609]
[1749781004519,10.92035942,142.52,142.36,4.5609]
[1749781004520,12.35798749,142.47,142.36,4.5609]
[1749781004725,55.99798749,142.49,142.39,12.35798749]
[1749781004925,55.99798749,142.49,142.4,2.3554]
[1749781005135,55.99798749,142.49,142.43,7.0151]
[1749781005621,0.0476911,142.47,142.45,0.04695425]
[1749781007025,0.0476911,142.47,142.46,7.014]
[1749781007725,404.18,142.53,142.47,7.0132]
[1749781007932,404.18,142.53,142.43,12.35798749]
[1749781008121,404.18,142.53,142.44,2.414]
[1749781008422,43.64,142.54,142.45,43.64]
[1749781008626,43.64,142.54,142.47,12.35798749]
[1749781008928,0.05290973,142.52,142.48,0.05156081]
[1749781009127,43.64,142.57,142.44,2.414]
[1749781009128,1.057e-05,142.51,142.49,56.04923036]
[1749781009327,43.64,142.57,142.5,2.1832]
[1749781010128,0.02401175,142.55,142.54,7.0098]
[1749781011129,14.71718749,142.61,142.53,14.62318749]
[1749781011130,43.64,142.61,142.53,14.62318749]
[1749781011330,7.0072,142.6,142.53,2.2652]
[1749781011717,43.64,142.61,142.53,2.2652]
[1749781011922,43.64,142.61,142.56,0.04795623]
[1749781012130,404.08,142.67,142.6,7.0072]
[1749781012318,43.62,142.66,142.62,0.04727141]
[1749781012722,7.0048,142.65,142.62,0.04727141]
[1749781012928,43.62,142.66,142.62,0.04727141]
[1749781013418,12.35798749,142.63,142.53,2.2652]
[1749781013624,50.64,142.66,142.5,2.1832]
[1749781013625,12.35798749,142.57,142.5,2.1832]
[1749781013824,62.98698749,142.57,142.51,7.0111]
[1749781014028,43.62,142.57,142.5,2.1832]
[1749781014222,43.62,142.57,142.5,14.54118749]
[1749781014417,0.04727141,142.55,142.52,7.05895816]
[1749781015219,0.04727141,142.55,142.52,0.04795816]
[1749781015826,7.0105,142.54,142.52,0.04795816]
[1749781016224,0.04727141,142.55,142.52,0.04795816]
[1749781016427,7.0101,142.54,142.52,0.04795816]
[1749781016830,0.04727141,142.55,142.52,0.04795816]
[1749781017630,43.62,142.57,142.54,7.0101]
[1749781017829,43.62,142.57,142.52,0.04795816]
[1749781018332,43.5,142.6,142.52,12.40594565]
[1749781018533,6.44014952,142.66,142.56,12.35798749]
[1749781018534,2.2128,142.65,142.56,12.35798749]
[1749781018831,43.5,142.64,142.59,0.04916525]
[1749781019131,447.58,142.67,142.6,0.04448006]
[1749781019327,459.93798749,142.67,142.6,0.04448006]
[1749781019627,12.35798749,142.65,142.6,0.04448006]
[1749781019929,7.0067,142.61,142.6,0.04448006]
[1749781020119,55.85798749,142.63,142.56,4.0]
[1749781020318,7.0079,142.59,142.56,4.0]
[1749781020518,43.5,142.58,142.56,4.0]
[1749781020731,12.35798749,142.57,142.46,2.3257]
[1749781021030,43.5,142.58,142.46,4.5878]
[1749781021328,43.5,142.58,142.51,12.4082523]
[1749781021725,43.5,142.58,142.51,0.05026481]
[1749781022427,7.0087,142.57,142.51,0.05026481]
[1749781022624,43.5,142.58,142.51,0.05026481]
[1749781023028,50.5082,142.58,142.51,4.05026481]
[1749781023731,43.5,142.58,142.51,4.05026481]
[1749781024124,43.5,142.58,142.57,7.0086]
[1749781024434,43.5,142.61,142.56,0.05046445]
[1749781024628,43.5,142.63,142.57,0.05084107]
[1749781024828,43.5,142.63,142.59,0.04591246]
[1749781025227,43.5,142.63,142.6,7.0071]
[1749781025432,55.85798749,142.63,142.59,0.04591246]
[1749781025822,19.36498749,142.61,142.51,47.5]
[1749781026029,12.35798749,142.61,142.51,47.5]
[1749781026225,43.5,142.63,142.54,12.35798749]
[1749781026529,12.35798749,142.61,142.51,47.5]
[1749781026833,0.04591246,142.57,142.55,0.0464623]
[1749781028429,0.04591246,142.57,142.56,7.0096]
[1749781028935,0.04591246,142.57,142.55,0.0464623]
[1749781029728,0.04591246,142.57,142.56,7.0096]
[1749781030331,0.04591246,142.57,142.55,0.0464623]
[1749781032636,43.5,142.62,142.55,0.0464623]
[1749781032831,43.5,142.65,142.56,12.35798749]
[1749781033033,43.5,142.65,142.58,12.35798749]
[1749781033335,12.35798749,142.64,142.57,2.2428]
[1749781033537,12.35798749,142.64,142.53,43.5]
[1749781033736,7.0072,142.61,142.57,7.05798479]
[1749781034038,43.5,142.61,142.57,4.04908479]
[1749781035239,12.35798749,142.58,142.57,0.6163631]
[1749781035433,7.0097,142.56,142.52,7.0114]
[1749781035639,55.83798749,142.56,142.47,43.48]
[1749781036435,0.04908479,142.53,142.5,0.05210167]
[1749781036930,19.36998749,142.51,142.5,0.05210167]
[1749781037131,12.35798749,142.51,142.4,2.1859]
[1749781037532,12.35798749,142.49,142.4,2.1859]
[1749781037733,43.48,142.48,142.4,2.1859]
[1749781037931,43.48,142.48,142.4,4.3791]
[1749781038129,0.04986281,142.45,142.43,0.04501841]
[1749781040532,43.5,142.44,142.43,0.04501841]
[1749781040841,43.5,142.44,142.43,7.06101841]
[1749781041327,0.04986281,142.45,142.43,0.04501841]
[1749781041733,0.04986281,142.45,142.44,7.0155]
[1749781042035,0.04986281,142.45,142.43,0.04501841]
[1749781042535,0.04986281,142.45,142.44,7.0155]
[1749781042930,0.04986281,142.45,142.43,0.04501841]
[1749781043336,7.0155,142.44,142.43,0.04501841]
[1749781043537,12.4078503,142.45,142.43,0.04501841]
[1749781043941,0.04986281,142.45,142.43,0.04501841]
[1749781044437,7.0155,142.44,142.43,0.04501841]
[1749781044830,14.53133966,142.44,142.43,0.04501841]
[1749781045037,7.51373473,142.44,142.43,0.04501841]
[1749781045333,7.51397346,142.44,142.43,0.04501841]
[1749781045640,7.0168,142.42,142.4,4.0]
[1749781045942,43.44,142.43,142.4,4.0]
[1749781046437,4.82183086,142.42,142.4,4.0]
[1749781046738,43.44,142.48,142.41,12.35798749]
[1749781046936,43.44,142.51,142.43,12.35798749]
[1749781047240,12.35798749,142.5,142.42,2.2751]
[1749781047630,12.35798749,142.5,142.45,0.05393579]
[1749781047832,0.05123656,142.47,142.45,0.05393579]
[1749781048031,43.49123656,142.47,142.45,0.05393579]
[1749781048438,50.50533656,142.47,142.45,0.05393579]
[1749781048837,43.49123656,142.47,142.45,0.05393579]
[1749781049031,7.0145,142.46,142.45,4.05393579]
[1749781049643,43.49123656,142.47,142.45,4.05393579]
[1749781050047,43.49123656,142.47,142.45,11.06873579]